bitfinex/quotes_SOLUSD_20240925
["timestamp","ask_amount","ask_price","bid_price","bid_amount"]
[1727233080676,6.5837,151.89,151.83,10.61688941]
[1727233080879,6.5837,151.89,151.84,1.3169867]
[1727233082375,6.87897399,151.9,151.85,10.61688941]
[1727233082582,6.5828,151.91,151.86,1.31683842]
[1727233083681,28.58063942,151.92,151.85,10.61688941]
[1727233085586,6.5829,151.91,151.85,10.61688941]
[1727233087003,6.5834,151.9,151.85,10.61688941]
[1727233087499,21.99823942,151.92,151.85,10.61688941]
[1727233087694,6.5829,151.91,151.85,10.61688941]
[1727233093992,7.39330261,151.91,151.85,10.61688941]
[1727233096584,6.5833,151.9,151.85,10.61688941]
[1727233096786,6.5833,151.9,151.83,10.61688941]
[1727233097216,6.5838,151.89,151.81,22.2572]
[1727233097508,6.5845,151.88,151.81,22.2572]
[1727233098095,0.81040261,151.87,151.81,22.2572]
[1727233098291,6.5847,151.87,151.81,22.2572]
[1727233098714,7.39540261,151.86,151.81,22.2572]
[1727233099011,0.81040261,151.85,151.81,22.2572]
[1727233100305,6.5865,151.83,151.8,0.3175677]
[1727233100606,22.347,151.85,151.8,0.3175677]
[1727233100804,43.776884,151.88,151.8,0.3175677]
[1727233101317,0.81040261,151.87,151.8,0.3175677]
[1727233102618,7.39490261,151.87,151.8,0.3175677]
[1727233107612,6.585,151.86,151.8,0.3175677]
[1727233107791,0.81040261,151.85,151.8,0.3175677]
[1727233108813,7.39620261,151.85,151.8,0.3175677]
[1727233109017,0.81040261,151.84,151.8,0.3175677]
[1727233111617,6.5856,151.85,151.8,0.3175677]
[1727233111810,0.81040261,151.84,151.8,0.3175677]
[1727233112597,6.5858,151.84,151.8,0.3175677]
[1727233112927,6.5855,151.85,151.8,0.3175677]
[1727233113622,0.81040261,151.84,151.8,0.3175677]
[1727233115117,6.5855,151.85,151.8,0.3175677]
[1727233116422,0.81040261,151.84,151.8,0.3175677]
[1727233117903,6.5855,151.85,151.8,0.3175677]
[1727233118108,0.81040261,151.84,151.8,0.3175677]
[1727233118717,6.5855,151.85,151.8,0.3175677]
[1727233118919,0.81040261,151.84,151.8,0.3175677]
[1727233120424,20.0,151.86,151.8,10.93445711]
[1727233120622,6.585,151.86,151.8,10.93445711]
[1727233123535,0.81040261,151.85,151.8,10.93445711]
[1727233124435,6.585,151.86,151.8,10.93445711]
[1727233124735,20.0,151.88,151.82,10.61688941]
[1727233125037,6.5842,151.88,151.82,10.61688941]
[1727233125758,22.3452,151.89,151.82,10.61688941]
[1727233126551,6.5837,151.89,151.82,10.61688941]
[1727233127617,0.81040261,151.88,151.82,10.61688941]
[1727233128342,6.5837,151.89,151.82,10.61688941]
[1727233129225,7.39450261,151.88,151.82,10.61688941]
[1727233129487,0.81040261,151.87,151.82,10.61688941]
[1727233129631,6.5841,151.88,151.82,10.61688941]
[1727233130134,43.776884,151.91,151.82,10.61688941]
[1727233130312,6.5837,151.89,151.82,10.61688941]
[1727233131738,0.81040261,151.88,151.82,10.61688941]
[1727233135038,6.5837,151.89,151.82,10.61688941]
[1727233137443,0.81040261,151.88,151.82,10.61688941]
[1727233137641,26.5832,151.91,151.82,17.07438941]
[1727233138022,7.39370261,151.9,151.82,17.07438941]
[1727233138219,6.5837,151.89,151.82,17.07438941]
[1727233138533,0.81040261,151.88,151.82,17.07438941]
[1727233139129,6.5837,151.89,151.82,17.07438941]
[1727233139541,7.39450261,151.88,151.82,6.4575]
[1727233139725,30.360184,151.9,151.82,17.07438941]
[1727233141250,30.330024,151.9,151.82,17.07438941]
[1727233145338,23.746724,151.9,151.82,17.07438941]
[1727233145546,6.584,151.89,151.82,17.07438941]
[1727233147452,6.5833,151.9,151.82,6.4575]
[1727233147635,6.5833,151.9,151.82,17.07438941]
[1727233151358,0.81040261,151.89,151.82,17.07438941]
[1727233152241,0.81040261,151.89,151.83,16.0564]
[1727233152456,26.5829,151.91,151.84,10.61688941]
[1727233153647,0.81040261,151.9,151.84,10.61688941]
[1727233153844,6.5838,151.89,151.83,16.0564]
[1727233155459,20.0,151.91,151.83,16.0564]
[1727233155649,6.5833,151.9,151.83,16.0564]
[1727233161170,6.5833,151.9,151.84,10.61688941]
[1727233161566,26.5829,151.91,151.84,10.61688941]
[1727233162563,7.39360261,151.9,151.83,26.67328941]
[1727233166279,6.5832,151.9,151.83,26.67328941]
[1727233171192,20.0,151.91,151.83,26.67328941]
[1727233171193,0.81040261,151.89,151.83,16.0564]
[1727233176588,7.39410261,151.89,151.83,16.0564]
[1727233176766,0.81040261,151.88,151.83,16.0564]
[1727233177486,7.39450261,151.88,151.83,16.0564]
[1727233177786,20.0,151.91,151.83,16.0564]
[1727233177787,7.39500261,151.87,151.83,16.0564]
[1727233177982,0.81040261,151.86,151.82,6.4575]
[1727233178189,6.5846,151.87,151.82,6.4575]
[1727233179287,6.5846,151.87,151.82,17.07438941]
[1727233179591,6.5838,151.89,151.83,1.31723612]
[1727233179789,6.5838,151.89,151.82,17.07438941]
[1727233180992,0.81040261,151.88,151.82,17.07438941]
[1727233187588,6.5842,151.88,151.82,6.4575]
[1727233190501,6.5838,151.89,151.82,6.4575]
[1727233190672,6.5838,151.89,151.83,10.61688941]
[1727233191974,30.360184,151.9,151.83,10.61688941]
[1727233192300,30.360184,151.9,151.82,6.4575]
[1727233192498,20.0,151.91,151.83,10.61688941]
[1727233192795,20.0,151.91,151.82,6.4575]
[1727233192796,13.4541794,151.92,151.85,10.61688941]
[1727233193301,6.5833,151.9,151.85,10.61688941]
[1727233193488,6.5833,151.9,151.84,15.5366]
[1727233194396,6.5831,151.91,151.85,10.61688941]
[1727233197003,0.81040261,151.9,151.85,10.61688941]
[1727233197492,6.5831,151.91,151.85,10.61688941]
[1727233199015,6.5831,151.91,151.84,15.5366]
[1727233199304,6.5831,151.91,151.85,10.61688941]
[1727233200202,6.8716794,151.92,151.85,10.61688941]
[1727233200392,13.4540794,151.92,151.85,10.61688941]
[1727233202505,0.81040261,151.91,151.84,26.15348941]
[1727233202813,6.5833,151.9,151.84,15.5366]
[1727233203179,0.81040261,151.89,151.84,15.5366]
[1727233204291,6.5833,151.9,151.84,15.5366]
[1727233204506,0.81040261,151.89,151.84,15.5366]
[1727233205197,0.81040261,151.89,151.84,26.15348941]
[1727233206198,0.81040261,151.89,151.8,0.3175677]
[1727233206199,0.81040261,151.89,151.8,16.5220677]
[1727233206394,6.5842,151.88,151.81,10.61688941]
[1727233207513,23.776884,151.87,151.8,16.5220677]
[1727233207715,23.776884,151.87,151.8,27.13895711]
[1727233208721,23.776884,151.87,151.8,16.5220677]
[1727233208923,23.776884,151.87,151.8,27.13895711]
[1727233210091,6.5842,151.88,151.82,10.61688941]
[1727233212321,6.5836,151.9,151.82,10.61688941]
[1727233212497,23.776884,151.89,151.82,10.61688941]
[1727233212693,0.81040261,151.88,151.82,10.61688941]
[1727233214206,6.87293799,151.91,151.84,10.61688941]
[1727233214412,6.87293799,151.91,151.86,10.61688941]
[1727233215298,0.81040261,151.9,151.84,10.61688941]
[1727233215497,6.5832,151.9,151.84,10.61688941]
[1727233219820,30.360184,151.9,151.84,10.61688941]
[1727233221104,6.5844,151.88,151.8,16.5220677]
[1727233221318,6.5837,151.89,151.8,16.5220677]
[1727233221518,7.39450261,151.88,151.8,16.5220677]
[1727233221807,6.5841,151.88,151.8,16.5220677]
[1727233222025,0.81040261,151.87,151.8,16.5220677]
[1727233222213,30.362284,151.86,151.8,0.3175677]
[1727233222420,0.81040261,151.85,151.8,0.3175677]
[1727233224427,6.5854,151.86,151.8,0.3175677]
[1727233224634,23.776884,151.87,151.8,0.3175677]
[1727233224927,30.361384,151.87,151.8,0.3175677]
[1727233226633,22.3456,151.88,151.81,10.61688941]
[1727233227112,24.58728661,151.87,151.81,10.61688941]
[1727233228435,23.776884,151.87,151.81,10.61688941]
[1727233230111,23.776884,151.87,151.8,10.93445711]
[1727233230636,23.776884,151.87,151.8,0.3175677]
[1727233230829,23.776884,151.87,151.8,10.93445711]
[1727233231166,0.81040261,151.86,151.8,10.93445711]
[1727233231941,0.81040261,151.86,151.8,0.3175677]
[1727233232530,7.39590261,151.85,151.8,0.3175677]
[1727233232922,23.776884,151.84,151.8,0.3175677]
[1727233233120,23.776884,151.82,151.8,0.3175677]
[1727233233332,22.0418,151.83,151.8,0.3175677]
[1727233233718,0.81040261,151.82,151.8,0.3175677]
[1727233235134,22.0418,151.83,151.8,0.3175677]
[1727233235460,6.5867,151.82,151.8,0.3175677]
[1727233236345,0.81040261,151.81,151.8,0.3175677]
[1727233237049,7.39750261,151.81,151.8,0.3175677]
[1727233238057,30.363984,151.81,151.8,0.3175677]
[1727233238437,31.17438661,151.81,151.8,0.3175677]
[1727233238670,51.17438661,151.81,151.8,0.3175677]
[1727233239038,50.363984,151.81,151.8,0.3175677]
[1727233240048,49.363984,151.81,151.8,0.3175677]
[1727233240457,30.17438661,151.81,151.8,0.3175677]
[1727233240769,49.363984,151.81,151.8,0.3175677]
[1727233242456,69.163984,151.81,151.8,0.3175677]
[1727233243149,69.163984,151.81,151.75,0.3531437]
[1727233243150,85.180384,151.81,151.75,0.3531437]
[1727233243368,46.3893,151.76,151.75,0.3531437]
[1727233243666,70.166184,151.76,151.75,0.3531437]
[1727233243862,50.366184,151.76,151.75,0.3531437]
[1727233244564,43.776884,151.76,151.75,0.3531437]
[1727233245258,50.366184,151.76,151.75,0.3531437]
[1727233246575,50.366184,151.76,151.75,0.3531437]
[1727233247549,70.166184,151.76,151.75,0.3531437]
[1727233248168,50.366184,151.76,151.75,0.3531437]
[1727233254853,15.4555,151.78,151.75,0.3531437]
[1727233255055,6.5876,151.8,151.75,0.3531437]
[1727233255056,6.5876,151.8,151.75,6.9424437]
[1727233255575,0.81040261,151.79,151.75,6.9424437]
[1727233255780,6.5876,151.8,151.75,6.9424437]
[1727233256165,20.81040261,151.79,151.75,6.9424437]
[1727233257185,20.0,151.79,151.75,6.9424437]
[1727233257687,30.365684,151.78,151.75,0.3531437]
[1727233258661,31.5120134,151.78,151.75,0.3531437]
[1727233259086,30.365684,151.78,151.75,0.3531437]
[1727233259275,26.5881,151.79,151.75,0.3531437]
[1727233259481,6.5881,151.79,151.75,0.3531437]
[1727233260287,20.0,151.78,151.75,0.3531437]
[1727233260464,0.81040261,151.77,151.76,6.5893]
[1727233260673,0.81040261,151.8,151.76,6.5893]
[1727233261709,20.0,151.81,151.78,6.5884]
[1727233262291,20.0,151.81,151.77,6.5888]
[1727233262778,0.81040261,151.8,151.77,6.5888]
[1727233263774,0.81040261,151.8,151.76,10.61688941]
[1727233264087,7.39800261,151.8,151.75,6.9424437]
[1727233264790,6.5876,151.8,151.75,6.9424437]
[1727233264966,0.81040261,151.79,151.75,6.9424437]
[1727233265165,6.5893,151.76,151.75,0.3531437]
[1727233265489,7.39970261,151.76,151.75,0.3531437]
[1727233265690,6.5893,151.76,151.75,0.3531437]
[1727233266488,26.589,151.77,151.75,0.3531437]
[1727233266787,0.81040261,151.76,151.75,0.3531437]
[1727233267177,26.5889,151.77,151.75,0.3531437]
[1727233267375,0.81040261,151.76,151.75,0.3531437]
[1727233267581,20.0,151.77,151.75,0.3531437]
[1727233267772,0.81040261,151.76,151.75,0.3531437]
[1727233268202,24.58728661,151.76,151.75,0.3531437]
[1727233268710,31.17658661,151.76,151.75,0.3531437]
[1727233271412,30.366184,151.76,151.75,0.3531437]
[1727233271784,31.17658661,151.76,151.75,0.3531437]
[1727233272407,30.366184,151.76,151.75,0.3531437]
[1727233272701,50.366184,151.76,151.75,0.3531437]
[1727233274104,23.776884,151.75,151.71,0.1707114]
[1727233274293,20.0,151.77,151.73,6.5902]
[1727233274595,0.81040261,151.76,151.73,6.5902]
[1727233274777,20.81040261,151.76,151.73,6.5902]
[1727233275200,20.0,151.76,151.72,6.591]
[1727233275412,6.5893,151.76,151.72,6.591]
[1727233275705,6.5893,151.76,151.71,17.37900081]
[1727233276091,23.776884,151.75,151.71,6.7621114]
[1727233277580,23.776884,151.75,151.71,0.1707114]
[1727233277786,19.8,151.77,151.71,0.1707114]
[1727233277787,38.841684,151.76,151.71,0.1707114]
[1727233278112,6.5903,151.74,151.71,0.1707114]
[1727233278313,0.81040261,151.73,151.72,6.5909]
[1727233278908,0.81040261,151.73,151.71,0.1707114]
[1727233279090,0.81040261,151.73,151.71,6.7621114]
[1727233279287,0.81040261,151.75,151.71,6.7621114]
[1727233279501,23.776884,151.75,151.71,6.7621114]
[1727233281423,15.0648,151.76,151.73,6.5906]
[1727233282094,15.0648,151.76,151.74,6.5898]
[1727233282701,15.0648,151.76,151.71,0.1707114]
[1727233283003,15.0648,151.76,151.73,6.5906]
[1727233283205,0.81040261,151.75,151.71,0.1707114]
[1727233283406,15.0648,151.76,151.71,0.1707114]
[1727233283716,0.81040261,151.75,151.71,0.1707114]
[1727233284316,15.0648,151.76,151.71,0.1707114]
[1727233285809,15.0648,151.76,151.73,6.5903]
[1727233286203,0.81040261,151.75,151.73,6.5903]
[1727233286405,0.81040261,151.75,151.72,6.591]
[1727233286612,15.0648,151.76,151.72,6.591]
[1727233286811,0.81040261,151.75,151.72,6.591]
[1727233287501,23.776884,151.74,151.71,6.7621114]
[1727233287804,23.776884,151.75,151.71,6.7621114]
[1727233288029,23.776884,151.75,151.71,0.1707114]
[1727233288300,21.6545,151.76,151.72,6.591]
[1727233288519,0.81040261,151.75,151.72,6.591]
[1727233288702,0.81040261,151.75,151.71,6.7621114]
[1727233291718,23.776884,151.75,151.71,6.7621114]
[1727233293736,23.776884,151.75,151.71,0.1707114]
[1727233293911,23.776884,151.75,151.72,6.591]
[1727233295404,23.776884,151.75,151.71,0.1707114]
[1727233295610,0.81040261,151.74,151.71,0.1707114]
[1727233295823,30.366984,151.75,151.71,0.1707114]
[1727233297529,50.166984,151.75,151.71,0.1707114]
[1727233297714,23.776884,151.75,151.71,0.1707114]
[1727233297917,23.776884,151.75,151.71,6.7618114]
[1727233299845,6.5906,151.74,151.71,0.1707114]
[1727233300142,30.366684,151.75,151.71,0.1707114]
[1727233300439,0.81040261,151.74,151.71,6.7618114]
[1727233300637,23.776884,151.75,151.71,6.7618114]
[1727233305443,0.81040261,151.74,151.71,6.7618114]
[1727233305818,0.81040261,151.74,151.71,0.1707114]
[1727233306021,30.366784,151.75,151.71,6.7621114]
[1727233306248,30.366784,151.75,151.71,6.2621114]
[1727233307324,30.366784,151.75,151.66,21.7211437]
[1727233307532,30.366784,151.75,151.7,6.5915]
[1727233310451,7.40060261,151.74,151.66,21.7211437]
[1727233310646,30.367884,151.73,151.66,21.2211437]
[1727233311450,0.81040261,151.72,151.66,31.83803311]
[1727233311744,26.5902,151.74,151.69,6.5923]
[1727233312039,26.5898,151.75,151.7,6.5916]
[1727233312237,6.591,151.73,151.62,15.949]
[1727233312440,23.776884,151.72,151.64,10.61688941]
[1727233313651,23.776884,151.72,151.69,6.5923]
[1727233314442,23.776884,151.7,151.62,15.949]
[1727233314640,0.81040261,151.69,151.67,6.5931]
[1727233315234,23.776884,151.68,151.62,15.949]
[1727233316420,0.81040261,151.67,151.64,6.5944]
[1727233317544,23.776884,151.66,151.61,0.0728486]
[1727233317722,23.776884,151.66,151.62,6.5953]
[1727233318534,38.833584,151.64,151.61,0.0728486]
[1727233318743,45.428084,151.64,151.61,0.0728486]
[1727233319047,26.3932,151.67,151.62,6.5953]
[1727233319231,44.58728661,151.66,151.62,6.5953]
[1727233320150,51.18098661,151.66,151.61,6.6686486]
[1727233320326,70.170584,151.66,151.61,6.6686486]
[1727233321148,43.776884,151.66,151.62,6.595]
[1727233321356,0.81040261,151.66,151.61,10.68973801]
[1727233321651,7.40190261,151.71,151.66,6.5932]
[1727233321831,15.9627,151.72,151.63,11.86160851]
[1727233322347,16.77310261,151.72,151.68,6.5927]
[1727233322536,15.9627,151.72,151.68,6.5927]
[1727233322945,6.5898,151.75,151.7,6.5919]
[1727233323140,26.3898,151.75,151.67,10.61688941]
[1727233323345,33.23270152,151.75,151.69,6.5923]
[1727233323552,34.04310413,151.75,151.69,6.5923]
[1727233324249,33.23270152,151.75,151.67,10.61688941]
[1727233324453,6.84290152,151.75,151.72,6.591]
[1727233324653,6.84290152,151.75,151.74,6.5902]
[1727233324958,6.8329191,151.79,151.73,6.5906]
[1727233325131,6.5884,151.78,151.73,6.5906]
[1727233325335,7.08211895,151.79,151.73,6.5906]
[1727233325540,7.08211895,151.79,151.75,6.5897]
[1727233325735,0.2447191,151.79,151.76,6.5892]
[1727233326254,0.81040261,151.78,151.74,6.5898]
[1727233326465,0.81040261,151.77,151.74,6.5898]
[1727233326835,0.2447191,151.79,151.74,6.5898]
[1727233327766,24.0216031,151.79,151.74,6.5898]
[1727233328555,0.2447191,151.79,151.75,6.5897]
[1727233330957,0.81040261,151.78,151.74,6.5901]
[1727233331266,0.2447191,151.79,151.74,6.5901]
[1727233332554,31.17578661,151.78,151.73,6.5906]
[1727233332773,6.5889,151.77,151.72,6.591]
[1727233332984,0.81040261,151.76,151.72,6.591]
[1727233333151,6.5889,151.77,151.72,6.591]
[1727233333474,0.81040261,151.76,151.72,6.591]
[1727233334357,6.5898,151.75,151.7,6.5916]
[1727233334553,0.81040261,151.74,151.7,6.5916]
[1727233334748,23.776884,151.74,151.7,6.5916]
[1727233335272,6.5889,151.77,151.71,6.5914]
[1727233335582,23.776884,151.76,151.71,6.5914]
[1727233336157,23.776884,151.76,151.72,6.5909]
[1727233336353,6.5889,151.77,151.72,6.5909]
[1727233336563,0.81040261,151.76,151.72,6.5909]
[1727233337576,30.366184,151.76,151.71,6.5914]
[1727233338260,6.5898,151.75,151.69,10.61688941]
[1727233338459,6.5898,151.75,151.66,15.2006]
[1727233338665,23.776884,151.74,151.68,10.61688941]
[1727233339571,23.776884,151.75,151.68,10.61688941]
[1727233339876,23.776884,151.76,151.71,6.5914]
[1727233340675,30.366384,151.76,151.71,6.5914]
[1727233342869,23.776884,151.76,151.68,10.61688941]
[1727233343071,23.776884,151.76,151.72,6.591]
[1727233343663,22.5512,151.78,151.73,6.5902]
[1727233347280,0.81040261,151.77,151.73,6.5902]
[1727233347584,6.5898,151.75,151.71,6.5912]
[1727233347799,0.81040261,151.74,151.68,10.61688941]
[1727233347999,6.5898,151.75,151.7,6.5918]
[1727233348660,30.366284,151.76,151.71,6.5911]
[1727233348859,15.9627,151.78,151.7,10.61688941]
[1727233349059,6.5889,151.77,151.72,6.591]
[1727233351181,0.81040261,151.76,151.72,6.591]
[1727233351584,30.366684,151.75,151.71,6.5915]
[1727233352189,0.81040261,151.74,151.71,6.5915]
[1727233352692,30.366684,151.75,151.71,6.5915]
[1727233352993,0.81040261,151.74,151.71,6.5915]
[1727233353290,30.366684,151.75,151.71,6.5915]
[1727233353484,30.366684,151.75,151.7,6.5919]
[1727233354675,30.366684,151.75,151.71,6.5914]
[1727233355497,30.366284,151.76,151.71,6.5914]
[1727233357168,6.5898,151.75,151.7,6.5918]
[1727233357595,23.776884,151.74,151.7,6.5918]
[1727233357878,23.776884,151.74,151.68,10.61688941]
[1727233358075,6.5898,151.75,151.71,6.5914]
[1727233358587,24.58728661,151.74,151.7,6.5918]
[1727233358771,23.776884,151.74,151.7,6.5918]
[1727233360293,13.43772387,151.76,151.71,6.5911]
[1727233362480,23.776884,151.75,151.71,6.5911]
[1727233362799,13.43772387,151.76,151.72,6.5909]
[1727233363001,6.84832387,151.76,151.72,6.5909]
[1727233363178,0.81040261,151.75,151.73,6.5905]
[1727233363378,0.81040261,151.75,151.72,6.591]
[1727233364200,0.81040261,151.74,151.72,6.591]
[1727233364376,0.81040261,151.76,151.72,6.591]
[1727233366389,6.589,151.77,151.72,6.591]
[1727233367100,23.776884,151.77,151.75,6.5897]
[1727233367313,7.09057926,151.79,151.76,6.5892]
[1727233367604,0.81040261,151.78,151.76,6.5892]
[1727233368203,0.81040261,151.78,151.72,10.61688941]
[1727233368404,0.81040261,151.78,151.75,6.5896]
[1727233368698,7.39890261,151.78,151.74,6.5901]
[1727233369000,23.776884,151.78,151.74,6.5901]
[1727233369184,6.8328191,151.79,151.74,6.5901]
[1727233370103,0.81040261,151.78,151.74,6.5901]
[1727233372707,23.776884,151.78,151.74,6.5901]
[1727233373403,20.0447191,151.79,151.71,15.2125]
[1727233373607,30.365384,151.78,151.71,25.82938941]
[1727233373907,30.6096031,151.79,151.74,6.5901]
[1727233374116,24.0216031,151.79,151.75,6.5897]
[1727233374289,0.81040261,151.78,151.75,6.5897]
[1727233374605,24.0216031,151.79,151.75,6.5897]
[1727233376507,0.81040261,151.78,151.75,6.5897]
[1727233376703,24.0216031,151.79,151.76,6.5892]
[1727233377204,0.2447191,151.79,151.77,6.5888]
[1727233377405,0.2447191,151.79,151.75,10.61688941]
[1727233377579,0.81040261,151.78,151.76,6.5893]
[1727233377783,0.2447191,151.79,151.76,6.5893]
[1727233377997,0.81040261,151.78,151.76,6.5893]
[1727233379306,1.05512171,151.79,151.76,6.5893]
[1727233379610,0.2447191,151.79,151.76,6.5893]
[1727233382003,0.81040261,151.78,151.76,6.5893]
[1727233383124,1.05512171,151.79,151.76,6.5893]
[1727233386809,1.05512171,151.79,151.73,25.94648941]
[1727233387019,1.05512171,151.79,151.74,10.61688941]
[1727233387195,0.2447191,151.79,151.74,10.61688941]
[1727233389500,0.2447191,151.79,151.76,6.5892]
[1727233392092,0.2447191,151.79,151.77,6.5888]
[1727233393318,0.2447191,151.79,151.73,15.3296]
[1727233393621,0.2447191,151.79,151.75,6.5893]
[1727233394404,0.2447191,151.79,151.76,6.5892]
[1727233398304,0.81040261,151.78,151.76,6.5892]
[1727233398702,1.05512171,151.79,151.76,6.5892]
[1727233398907,0.2447191,151.79,151.76,6.5892]
[1727233399518,0.2447191,151.79,151.73,25.94648941]
[1727233400736,0.2447191,151.79,151.73,15.3296]
[1727233401226,0.2447191,151.79,151.72,10.61688941]
[1727233401227,0.81040261,151.78,151.74,6.5901]
[1727233401651,6.589,151.77,151.72,6.591]
[1727233401938,0.81040261,151.76,151.72,6.591]
[1727233403434,6.589,151.77,151.72,6.591]
[1727233408521,0.81040261,151.76,151.72,6.591]
[1727233408718,6.589,151.77,151.72,6.591]
[1727233408915,6.5895,151.76,151.72,6.591]
[1727233409639,6.589,151.77,151.72,6.591]
[1727233410025,6.5885,151.78,151.73,6.5904]
[1727233416325,6.5893,151.77,151.7,10.61688941]
[1727233416646,6.5893,151.77,151.73,6.5906]
[1727233418446,0.81040261,151.76,151.72,6.591]
[1727233418629,6.5893,151.77,151.72,6.591]
[1727233421738,6.5893,151.76,151.72,6.591]
[1727233422166,0.81040261,151.75,151.72,6.591]
[1727233422527,0.81040261,151.78,151.72,6.591]
[1727233422753,6.5903,151.74,151.66,6.5835]
[1727233423054,6.5898,151.75,151.7,6.5918]
[1727233423735,6.5902,151.74,151.65,15.4827]
[1727233423946,7.40100261,151.73,151.69,6.592]
[1727233424740,0.81040261,151.73,151.69,6.592]
[1727233425050,7.40110261,151.73,151.68,6.5927]
[1727233425746,6.5907,151.73,151.68,6.5927]
[1727233425944,6.4122,151.72,151.61,15.5555486]
[1727233426146,6.5932,151.67,151.62,6.595]
[1727233426449,6.5932,151.67,151.61,0.0728486]
[1727233426450,7.40310261,151.69,151.63,7.8396191]
[1727233426659,6.593,151.68,151.63,7.8396191]
[1727233426829,0.81040261,151.68,151.64,6.5945]
[1727233427943,0.81040261,151.68,151.63,1.2447191]
[1727233428145,6.5937,151.66,151.63,1.2447191]
[1727233428353,0.81040261,151.65,151.63,1.2447191]
[1727233429640,7.40460261,151.65,151.63,1.2447191]
[1727233432133,6.5942,151.65,151.63,1.2447191]
[1727233433647,0.81040261,151.64,151.63,1.2447191]
[1727233433853,6.5942,151.65,151.63,1.2447191]
[1727233434158,50.370584,151.66,151.63,1.2447191]
[1727233435837,20.0,151.66,151.63,1.2447191]
[1727233436053,7.40450261,151.65,151.63,1.2447191]
[1727233436860,0.81040261,151.65,151.63,1.2447191]
[1727233437459,21.14755021,151.67,151.63,7.8395191]
[1727233438157,1.14755021,151.67,151.65,6.5941]
[1727233438454,29.06398099,151.7,151.65,6.5941]
[1727233439359,0.81040261,151.69,151.65,6.5941]
[1727233440355,22.2185,151.7,151.65,6.5941]
[1727233440556,15.6262,151.7,151.63,13.1803799]
[1727233440761,15.6262,151.7,151.65,6.5937]
[1727233441058,14.1262,151.7,151.65,6.5937]
[1727233442340,14.1262,151.7,151.67,6.5932]
[1727233444361,14.1262,151.7,151.63,11.86160851]
[1727233444543,14.1262,151.7,151.66,6.5936]
[1727233448477,14.1262,151.7,151.63,11.86160851]
[1727233448769,20.7182,151.7,151.65,6.594]
[1727233454664,14.1262,151.7,151.63,11.86160851]
[1727233454964,6.5925,151.69,151.63,11.86160851]
[1727233455657,20.7182,151.7,151.65,6.594]
[1727233457848,20.19075645,151.7,151.65,6.594]
[1727233458571,6.5927,151.69,151.64,6.5944]
[1727233458771,13.59875645,151.7,151.63,7.8396191]
[1727233458772,7.40320261,151.68,151.63,7.8396191]
[1727233458938,6.5928,151.68,151.63,7.8396191]
[1727233459138,0.81040261,151.67,151.63,7.8396191]
[1727233459366,6.5928,151.68,151.63,7.8396191]
[1727233460368,20.19075645,151.7,151.65,6.5939]
[1727233460566,0.81040261,151.69,151.65,6.5939]
[1727233461074,7.40310261,151.69,151.64,6.5944]
[1727233461249,6.5927,151.69,151.64,6.5944]
[1727233461455,23.776884,151.69,151.64,6.5944]
[1727233461647,6.5928,151.68,151.64,6.5944]
[1727233462964,0.81040261,151.67,151.64,6.5944]
[1727233463577,6.5933,151.67,151.63,1.2447191]
[1727233463780,23.776884,151.69,151.63,1.2447191]
[1727233464072,6.5929,151.68,151.63,7.8393191]
[1727233465977,6.5925,151.69,151.64,6.5944]
[1727233469070,6.5925,151.69,151.63,1.2447191]
[1727233469377,6.5925,151.69,151.65,6.594]
[1727233472376,20.19075645,151.7,151.66,6.5936]
[1727233472558,0.81040261,151.69,151.66,6.5936]
[1727233472974,20.19075645,151.7,151.66,6.5936]
[1727233473185,0.81040261,151.69,151.65,6.594]
[1727233473936,20.19075645,151.7,151.65,6.594]
[1727233477191,6.5926,151.69,151.63,1.2447191]
[1727233478476,6.5926,151.69,151.64,6.5944]
[1727233479169,6.5926,151.69,151.65,6.5941]
[1727233480476,13.59875645,151.7,151.63,1.2447191]
[1727233480660,13.59875645,151.7,151.66,6.5936]
[1727233480864,14.40915906,151.7,151.66,6.5936]
[1727233481478,21.00135906,151.7,151.65,6.5941]
[1727233481686,20.19095645,151.7,151.65,6.5941]
[1727233481976,23.776884,151.68,151.63,1.2447191]
[1727233483185,6.5937,151.66,151.63,1.2447191]
[1727233483967,26.90099349,151.69,151.63,1.2447191]